[Event "12th Batavia Amsterdam 2020"]
[Site "Amsterdam"]
[Date "2020.02.21"]
[Round "1.2"]
[White "Zwirs, Nico"]
[Black "Van Haastert, Edwin"]
[Result "0-1"]
[ECO "C54"]
[WhiteElo "2443"]
[BlackElo "2438"]
[Annotator "NA"]
[PlyCount "62"]
[EventDate "2020.02.21"]
[EventType "tourn"]
[EventCountry "NED"]
[SourceTitle "playchess.com"]
[Source "ChessBase"]
[SourceQuality "1"]
[TimeControl "40/5400+30:1800+30"]

1. e4 {[%emt 0:00:00]} e5 {[%emt 0:00:00]} 2. Nf3 {[%emt 0:01:00]} Nc6 {[%emt 0:00:00]} 3. Bc4 {[%emt 0:00:31]} Nf6 {[%emt 0:00:00]} 4. d3 {[%emt 0:00:27]} Bc5 {[%emt 0:00:00]} 5. c3 {[%emt 0:03:27]} a6 {[%emt 0:00:27]} 6. Nbd2 {[%emt 0:03:34]} Ba7 {[%emt 0:00:46]} 7. h3 {[%emt 0:04:16]} d6 {[%emt 0:00:25]} 8. Bb3 {[%emt 0:00:26]} O-O {[%emt 0:01:14]} 9. Nf1 {[%emt 0:00:18]} d5 {[%emt 0:04:38]} 10. Qe2 {[%emt 0:02:32]} Be6 {[%emt 0:02:43]} 11. Bg5 {[%emt 0:10:55]} dxe4 {[%emt 0:01:56]} 12. dxe4 {[%emt 0:00:15]} Bxb3 {[%emt 0:00:36]} 13. axb3 {[%emt 0:00:06]} h6 {[%emt 0:05:46]} 14. Bh4 {[%emt 0:07:59]} Qd6 {[%emt 0:01:51]} 15. Ne3 {[%emt 0:11:12]} Bxe3 {[%emt 0:06:41]} ({And not} 15... Nxe4 16. Nf5 $16 {[%mdl 64] Discovered Attack}) 16. Qxe3 {[%emt 0:00:16]} Rad8 {[%emt 0:07:27]} 17. O-O {[%emt 0:17:17]} Qe6 $11 {[%emt 0:04:24]} 18. Bxf6 {[%emt 0:08:34]} Qxf6 {[%emt 0:00:13]} 19. Rfd1 {[%emt 0:00:07]} Rxd1+ {[%emt 0:14:17]} 20. Rxd1 {[%emt 0:00:16]} Rd8 {[%emt 0:00:05]} 21. Rd5 {[%emt 0:01:23]} Rxd5 {[%emt 0:10:57]} 22. exd5 {[%emt 0:00:08]} Ne7 {[%emt 0:00:05]} 23. c4 {[%emt 0:09:13]} Ng6 {[%emt 0:00:20]} 24. Qe4 {[%emt 0:04:34]} b6 {[%emt 0:02:12]} 25. h4 {[%emt 0:01:59]} a5 {[%emt 0:03:34]} 26. h5 {[%emt 0:03:27]} Nf4 {[%emt 0:00:26]} 27. Nxe5 {[%emt 0:01:03]} Nxh5 {[%emt 0:01:42]} 28. Nc6 {[%emt 0:04:13]} Qxb2 {[%emt 0:05:12]} 29. Qe8+ {[%emt 0:00:11]} Kh7 {[%emt 0:00:05]} 30. Qxf7 {[%emt 0:00:11]} Nf6 {[%emt 0:00:34]} 31. Qxc7 {[%emt 0:02:18]} Ng4 {[%emt 0:00:39]} 0-1

[Event "12th Batavia Amsterdam 2020"]
[Site "Amsterdam"]
[Date "2020.02.21"]
[Round "1.4"]
[White "Nijboer, Friso"]
[Black "Sukandar, Irine Kharisma"]
[Result "0-1"]
[ECO "B36"]
[WhiteElo "2469"]
[BlackElo "2408"]
[Annotator "ChessBase"]
[PlyCount "35"]
[EventDate "2020.02.21"]
[EventType "tourn"]
[EventCountry "NED"]
[SourceTitle "playchess.com"]
[Source "ChessBase"]
[SourceQuality "1"]
[TimeControl "40/5400+30:1800+30"]

1. e4 {[%emt 0:00:00]} c5 {[%emt 0:00:03]} 2. Nf3 {[%emt 0:00:00]} Nc6 {[%emt 0:00:06]} 3. d4 {[%emt 0:00:00]} cxd4 {[%emt 0:00:11]} 4. Nxd4 {[%emt 0:00:00]} g6 {[%emt 0:00:14]} 5. c4 {[%emt 0:00:00]} Nf6 {[%emt 0:00:18]} 6. Nc3 {[%emt 0:00:01]} d6 {[%emt 0:00:26]} 7. Be2 {[%emt 0:09:31]} Nxd4 {[%emt 0:00:34]} 8. Qxd4 {[%emt 0:00:04]} Bg7 {[%emt 0:00:09]} 9. Be3 {[%emt 0:03:32]} O-O {[%emt 0:00:24]} 10. Qd2 {[%emt 0:00:03]} a5 {[%emt 0:02:36]} 11. O-O {[%emt 0:07:30]} a4 {[%emt 0:01:03]} 12. f3 {[%emt 0:03:47]} Qa5 {[%emt 0:02:22]} 13. Rab1 {[%emt 0:06:05]} Be6 {[%emt 0:01:20]} 14. Rfc1 {[%emt 0:07:16]} Rfc8 {[%emt 0:00:45]} 15. b4 {[%emt 0:05:29]} axb3 {[%emt 0:00:19]} 16. axb3 {[%emt 0:00:01]} Qb4 {[%emt 0:00:24]} 17. Rc2 {[%emt 0:24:38]} Nd7 {[%emt 0:10:18]} 18. Na4 {[%emt 0:00:31]} 0-1

[Event "12th Batavia Amsterdam 2020"]
[Site "Amsterdam"]
[Date "2020.02.22"]
[Round "2.2"]
[White "Van Haastert, Edwin"]
[Black "Trent, Lawrence"]
[Result "1/2-1/2"]
[ECO "C84"]
[WhiteElo "2438"]
[BlackElo "2386"]
[Annotator "ChessBase"]
[PlyCount "56"]
[EventDate "2020.02.21"]
[EventType "tourn"]
[EventCountry "NED"]
[SourceTitle "playchess.com"]
[Source "ChessBase"]
[SourceQuality "1"]
[TimeControl "40/5400+30:1800+30"]

1. e4 {[%emt 0:00:00]} e5 {[%emt 0:03:48]} 2. Nf3 {[%emt 0:00:00]} Nc6 {[%emt 0:00:01]} 3. Bb5 {[%emt 0:00:07]} a6 {[%emt 0:00:06]} 4. Ba4 {[%emt 0:00:08]} Nf6 {[%emt 0:00:14]} 5. O-O {[%emt 0:00:11]} Nxe4 {[%emt 0:00:05]} 6. d4 {[%emt 0:00:27]} Be7 {[%emt 0:00:21]} 7. Qe2 {[%emt 0:02:42]} b5 {[%emt 0:03:14]} 8. Bb3 {[%emt 0:00:22]} d5 {[%emt 0:01:01]} 9. dxe5 {[%emt 0:01:06]} Na5 {[%emt 0:18:34]} 10. Nbd2 {[%emt 0:05:48]} Nxb3 {[%emt 0:10:47]} 11. axb3 {[%emt 0:01:10]} Bb7 {[%emt 0:03:55]} 12. Nd4 {[%emt 0:13:55]} Qd7 {[%emt 0:04:12]} 13. e6 {[%emt 0:05:16]} fxe6 {[%emt 0:00:07]} 14. Nxe4 {[%emt 0:00:07]} dxe4 {[%emt 0:00:04]} 15. Qh5+ {[%emt 0:00:27]} g6 {[%emt 0:00:12]} 16. Qe5 {[%emt 0:00:27]} O-O-O {[%emt 0:01:34]} 17. Be3 {[%emt 0:11:09]} Rhe8 {[%emt 0:11:21]} 18. Qxe6 {[%emt 0:05:35]} Bc5 {[%emt 0:00:48]} 19. Qxd7+ {[%emt 0:00:10]} Rxd7 {[%emt 0:00:01]} 20. c3 {[%emt 0:00:23]} Bxd4 {[%emt 0:00:17]} 21. Bxd4 {[%emt 0:00:20]} Re6 {[%emt 0:00:54]} 22. b4 {[%emt 0:01:16]} Bd5 {[%emt 0:01:11]} 23. Rfe1 {[%emt 0:01:06]} Kb7 {[%emt 0:00:14]} 24. Re3 {[%emt 0:00:35]} Rde7 {[%emt 0:01:00]} 25. Bc5 {[%emt 0:00:53]} Rd7 {[%emt 0:01:12]} 26. Bd4 {[%emt 0:00:23]} Rde7 {[%emt 0:00:02]} 27. Bc5 {[%emt 0:00:08]} Rd7 {[%emt 0:00:01]} 28. Bd4 {[%emt 0:00:14]} Rde7 {[%emt 0:00:02]} 1/2-1/2

[Event "12th Batavia Amsterdam 2020"]
[Site "Amsterdam"]
[Date "2020.02.22"]
[Round "2.4"]
[White "Sukandar, Irine Kharisma"]
[Black "Bosboom, Manuel"]
[Result "0-1"]
[ECO "C41"]
[WhiteElo "2408"]
[BlackElo "2410"]
[Annotator "NA"]
[PlyCount "100"]
[EventDate "2020.02.21"]
[EventType "tourn"]
[EventCountry "NED"]
[SourceTitle "playchess.com"]
[Source "ChessBase"]
[SourceQuality "1"]
[TimeControl "40/5400+30:1800+30"]

1. e4 {[%emt 0:00:00]} e5 {[%emt 0:00:00]} 2. Nf3 {[%emt 0:00:14]} d6 {[%emt 0:00:48]} 3. d4 {[%emt 0:00:37]} Nf6 {[%emt 0:01:05]} 4. dxe5 {[%emt 0:00:59]} Nxe4 {[%emt 0:01:44]} 5. Qd5 {[%emt 0:00:20]} Nc5 $1 {[%emt 0:00:38]} 6. Bg5 {[%emt 0:00:15]} Be7 {[%emt 0:01:16]} 7. exd6 {[%emt 0:00:18]} Qxd6 {[%emt 0:00:51]} 8. Nc3 {[%emt 0:01:09]} h6 {[%emt 0:19:28]} 9. Be3 {[%emt 0:04:44]} c6 {[%emt 0:02:17]} 10. Qxd6 {[%emt 0:02:48]} Bxd6 {[%emt 0:00:02]} 11. O-O-O {[%emt 0:00:28]} Be7 {[%emt 0:00:23]} 12. Bc4 {[%emt 0:05:22]} Nba6 {[%emt 0:19:23]} 13. Rhe1 {[%emt 0:06:53]} Be6 {[%emt 0:02:12]} 14. Bxa6 {[%emt 0:07:42]} Nxa6 {[%emt 0:00:49]} 15. Nd4 {[%emt 0:00:14]} Nc7 {[%emt 0:05:11]} 16. Nxe6 {[%emt 0:11:36]} Nxe6 {[%emt 0:00:47]} 17. f4 {[%emt 0:00:25]} g6 {[%emt 0:08:21]} 18. g4 {[%emt 0:01:16]} Bh4 $16 {[%emt 0:08:04]} 19. Re2 {[%emt 0:20:10]} O-O {[%emt 0:00:40]} 20. f5 {[%emt 0:01:00]} Ng5 {[%emt 0:00:33]} 21. Rd7 {[%emt 0:05:45]} b6 {[%emt 0:05:47]} 22. Rd6 {[%emt 0:00:58]} c5 {[%emt 0:04:08]} 23. fxg6 {[%emt 0:01:23]} fxg6 {[%emt 0:00:24]} 24. Rxg6+ {[%emt 0:00:14]} Kh7 {[%emt 0:00:05]} 25. Rd6 {[%emt 0:00:16]} Rae8 {[%emt 0:00:31]} 26. Rd7+ {[%emt 0:04:28]} Kg6 {[%emt 0:03:18]} 27. Bf4 {[%emt 0:07:33]} Ne6 {[%emt 0:03:37]} 28. Nd5 {[%emt 0:01:50]} Nxf4 {[%emt 0:03:04]} 29. Nxf4+ {[%emt 0:01:45]} Kg5 {[%emt 0:00:18]} 30. Ne6+ {[%emt 0:01:42]} Kxg4 {[%emt 0:00:47]} 31. Rd1 {[%emt 0:04:52]} Kf3 {[%emt 0:05:53]} 32. Re5 {[%emt 0:01:25]} Rg8 {[%emt 0:00:36]} 33. Rd3+ {[%emt 0:01:30]} Kf2 {[%emt 0:01:22]} 34. Rf5+ {[%emt 0:02:01]} Kg1 {[%emt 0:00:12]} 35. Nf4 {[%emt 0:03:56]} Bg5 {[%emt 0:01:30]} 36. h4 {[%emt 0:00:31]} Bxh4 {[%emt 0:01:07]} 37. Kd1 {[%emt 0:00:49]} Re1+ {[%emt 0:00:22]} 38. Kd2 {[%emt 0:00:01]} Re4 {[%emt 0:00:23]} 39. Ne2+ {[%emt 0:01:11]} Kh2 {[%emt 0:00:01]} 40. Rh5 {[%emt 0:00:39]} Kg2 {[%emt 0:00:59]} 41. b3 {[%emt 0:12:39]} Rge8 {[%emt 0:08:30]} 42. Kd1 {[%emt 0:02:57]} Rf8 {[%emt 0:03:50]} 43. Rdd5 {[%emt 0:06:39]} Rf1+ {[%emt 0:02:48]} 44. Kd2 {[%emt 0:00:01]} Rf2 {[%emt 0:00:17]} 45. Kd1 {[%emt 0:00:34]} Rfxe2 {[%emt 0:00:42]} 46. Rxh4 {[%emt 0:00:11]} Rxh4 {[%emt 0:00:09]} 47. Kxe2 {[%emt 0:00:05]} Re4+ {[%emt 0:00:36]} 48. Kd3 {[%emt 0:00:51]} Rd4+ {[%emt 0:00:22]} 49. Rxd4 {[%emt 0:00:06]} cxd4 {[%emt 0:00:01]} 50. c4 {[%emt 0:00:45]} dxc3 {[%emt 0:00:36]} 0-1

[Event "12th Batavia Amsterdam 2020"]
[Site "Amsterdam"]
[Date "2020.02.23"]
[Round "3.2"]
[White "Zwirs, Nico"]
[Black "Sukandar, Irine Kharisma"]
[Result "1-0"]
[ECO "B36"]
[WhiteElo "2443"]
[BlackElo "2408"]
[Annotator "ChessBase"]
[PlyCount "71"]
[EventDate "2020.02.21"]
[EventType "tourn"]
[EventCountry "NED"]
[SourceTitle "playchess.com"]
[Source "ChessBase"]
[SourceQuality "1"]
[TimeControl "40/5400+30:1800+30"]

1. e4 {[%emt 0:00:00]} c5 {[%emt 0:02:51]} 2. Nf3 {[%emt 0:00:00]} Nc6 {[%emt 0:00:20]} 3. d4 {[%emt 0:00:00]} cxd4 {[%emt 0:00:16]} 4. Nxd4 {[%emt 0:00:00]} g6 {[%emt 0:00:09]} 5. c4 {[%emt 0:00:00]} Nf6 {[%emt 0:00:27]} 6. Nc3 {[%emt 0:00:14]} d6 {[%emt 0:00:17]} 7. f3 {[%emt 0:00:19]} Nxd4 {[%emt 0:03:23]} 8. Qxd4 {[%emt 0:00:07]} Bg7 {[%emt 0:00:06]} 9. Be3 {[%emt 0:00:09]} O-O {[%emt 0:00:18]} 10. Qd2 {[%emt 0:00:32]} Be6 {[%emt 0:01:13]} 11. Rc1 {[%emt 0:01:06]} Qa5 {[%emt 0:00:43]} 12. b3 {[%emt 0:00:35]} Rfc8 {[%emt 0:00:41]} 13. Be2 {[%emt 0:01:08]} Rab8 {[%emt 0:00:12]} 14. Nd5 {[%emt 0:23:38]} Qxd2+ {[%emt 0:00:42]} 15. Kxd2 {[%emt 0:00:18]} Nxd5 {[%emt 0:00:22]} 16. cxd5 {[%emt 0:01:36]} Bd7 {[%emt 0:00:09]} 17. Bxa7 {[%emt 0:06:01]} Rxc1 {[%emt 0:00:21]} 18. Rxc1 {[%emt 0:00:46]} Ra8 {[%emt 0:00:07]} 19. Be3 {[%emt 0:12:21]} Rxa2+ {[%emt 0:00:15]} 20. Kd1 {[%emt 0:12:22]} Ra1 {[%emt 0:03:37]} 21. g4 {[%emt 0:03:00]} f5 {[%emt 0:05:18]} 22. Rxa1 {[%emt 0:03:35]} Bxa1 {[%emt 0:03:12]} 23. exf5 {[%emt 0:00:16]} gxf5 {[%emt 0:00:05]} 24. g5 {[%emt 0:00:48]} Kf7 {[%emt 0:18:17]} 25. h4 {[%emt 0:04:06]} e5 {[%emt 0:06:12]} 26. dxe6+ {[%emt 0:04:26]} Bxe6 {[%emt 0:00:18]} 27. Kc2 {[%emt 0:00:23]} Bd5 {[%emt 0:03:06]} 28. h5 {[%emt 0:04:40]} Be5 {[%emt 0:04:37]} 29. f4 {[%emt 0:02:13]} Bh8 {[%emt 0:00:25]} 30. Bc4 {[%emt 0:01:39]} Ke6 {[%emt 0:01:07]} 31. Kd3 {[%emt 0:01:26]} b5 {[%emt 0:05:13]} 32. Bxd5+ {[%emt 0:02:17]} Kxd5 {[%emt 0:00:02]} 33. Bd2 {[%emt 0:00:17]} Bb2 {[%emt 0:06:49]} 34. Bc3 {[%emt 0:01:33]} Bc1 {[%emt 0:00:44]} 35. g6 {[%emt 0:00:16]} hxg6 {[%emt 0:00:23]} 36. h6 {[%emt 0:00:07]} 1-0